{"text_format":"3","workbook":"xlsx","n_sheets":4,"sheets":["Zusammenfassung","Guthaben","Verbindlichkeiten","Kategorien"],"not_rendered":{"defined_names":9},"read":"whole","date_system":"1900"}

{"sheet":"Zusammenfassung","index":0,"n_rows":13,"n_cols":4,"rows_kept":13}
[]
[null,"BILANZAUFSTELLUNG "]
[null,null,{"$f":"\"GJ-\"&YEAR(TODAY())-1","v":"GJ-2023"},{"$f":"\"GJ-\"&YEAR(TODAY())","v":"GJ-2024"}]
[null,"ART DES GUTHABENS","VORJAHR","AKTUELLES JAHR"]
[null,"Umlaufvermögen",{"$f":"SUMIFS(Vermögenswerte[VORJAHR],Vermögenswerte[ART DES GUTHABENS],Dashboard[[#This Row],[ART DES GUTHABENS]])+SUMIFS(Passiva[VORJAHR],Passiva[ART DER VERBINDLICHKEIT],Dashboard[[#This Row],[ART DES GUTHABENS]])","v":600},{"$f":"SUMIFS(Vermögenswerte[AKTUELLES JAHR],Vermögenswerte[ART DES GUTHABENS],Dashboard[[#This Row],[ART DES GUTHABENS]])+SUMIFS(Passiva[AKTUELLES JAHR],Passiva[ART DER VERBINDLICHKEIT],Dashboard[[#This Row],[ART DES GUTHABENS]])","v":600}]
[null,"Anlagevermögen",{"$f":"SUMIFS(Vermögenswerte[VORJAHR],Vermögenswerte[ART DES GUTHABENS],Dashboard[[#This Row],[ART DES GUTHABENS]])+SUMIFS(Passiva[VORJAHR],Passiva[ART DER VERBINDLICHKEIT],Dashboard[[#This Row],[ART DES GUTHABENS]])","v":{"v":-100,"d":"-100 "}},{"$f":"SUMIFS(Vermögenswerte[AKTUELLES JAHR],Vermögenswerte[ART DES GUTHABENS],Dashboard[[#This Row],[ART DES GUTHABENS]])+SUMIFS(Passiva[AKTUELLES JAHR],Passiva[ART DER VERBINDLICHKEIT],Dashboard[[#This Row],[ART DES GUTHABENS]])","v":{"v":-85,"d":"-85 "}}]
[null,"Sonstiges Aktiva",{"$f":"SUMIFS(Vermögenswerte[VORJAHR],Vermögenswerte[ART DES GUTHABENS],Dashboard[[#This Row],[ART DES GUTHABENS]])+SUMIFS(Passiva[VORJAHR],Passiva[ART DER VERBINDLICHKEIT],Dashboard[[#This Row],[ART DES GUTHABENS]])","v":0},{"$f":"SUMIFS(Vermögenswerte[AKTUELLES JAHR],Vermögenswerte[ART DES GUTHABENS],Dashboard[[#This Row],[ART DES GUTHABENS]])+SUMIFS(Passiva[AKTUELLES JAHR],Passiva[ART DER VERBINDLICHKEIT],Dashboard[[#This Row],[ART DES GUTHABENS]])","v":0}]
[null,"Kurzfristige Verbindlichkeiten",{"$f":"SUMIFS(Vermögenswerte[VORJAHR],Vermögenswerte[ART DES GUTHABENS],Dashboard[[#This Row],[ART DES GUTHABENS]])+SUMIFS(Passiva[VORJAHR],Passiva[ART DER VERBINDLICHKEIT],Dashboard[[#This Row],[ART DES GUTHABENS]])","v":500},{"$f":"SUMIFS(Vermögenswerte[AKTUELLES JAHR],Vermögenswerte[ART DES GUTHABENS],Dashboard[[#This Row],[ART DES GUTHABENS]])+SUMIFS(Passiva[AKTUELLES JAHR],Passiva[ART DER VERBINDLICHKEIT],Dashboard[[#This Row],[ART DES GUTHABENS]])","v":350}]
[null,"Langfristige Verbindlichkeiten",{"$f":"SUMIFS(Vermögenswerte[VORJAHR],Vermögenswerte[ART DES GUTHABENS],Dashboard[[#This Row],[ART DES GUTHABENS]])+SUMIFS(Passiva[VORJAHR],Passiva[ART DER VERBINDLICHKEIT],Dashboard[[#This Row],[ART DES GUTHABENS]])","v":0},{"$f":"SUMIFS(Vermögenswerte[AKTUELLES JAHR],Vermögenswerte[ART DES GUTHABENS],Dashboard[[#This Row],[ART DES GUTHABENS]])+SUMIFS(Passiva[AKTUELLES JAHR],Passiva[ART DER VERBINDLICHKEIT],Dashboard[[#This Row],[ART DES GUTHABENS]])","v":0}]
[null,"Eigenkapital",{"$f":"SUMIFS(Vermögenswerte[VORJAHR],Vermögenswerte[ART DES GUTHABENS],Dashboard[[#This Row],[ART DES GUTHABENS]])+SUMIFS(Passiva[VORJAHR],Passiva[ART DER VERBINDLICHKEIT],Dashboard[[#This Row],[ART DES GUTHABENS]])","v":0},{"$f":"SUMIFS(Vermögenswerte[AKTUELLES JAHR],Vermögenswerte[ART DES GUTHABENS],Dashboard[[#This Row],[ART DES GUTHABENS]])+SUMIFS(Passiva[AKTUELLES JAHR],Passiva[ART DER VERBINDLICHKEIT],Dashboard[[#This Row],[ART DES GUTHABENS]])","v":350}]
[null,"GUTHABEN GESAMT",{"$f":"Vermögenswerte[[#Totals],[VORJAHR]]","v":500},{"$f":"Vermögenswerte[[#Totals],[AKTUELLES JAHR]]","v":515}]
[null,"VERBINDLICHKEITEN GESAMT UND EIGENKAPITAL",{"$f":"Passiva[[#Totals],[VORJAHR]]","v":500},{"$f":"Passiva[[#Totals],[AKTUELLES JAHR]]","v":700}]
[null,"SALDO",{"$f":"C11-C12","v":0},{"$f":"D11-D12","v":{"v":-185,"d":"-185 "}}]

{"sheet":"Guthaben","index":1,"n_rows":15,"n_cols":5,"rows_kept":15}
[]
[null,"GUTHABEN"]
[{"$nulls":3},{"$f":"GS_JAHR","v":"GJ-2023"},{"$f":"GS_JAHR_2","v":"GJ-2024"}]
[null,"ART DES GUTHABENS","BESCHREIBUNG","VORJAHR","AKTUELLES JAHR"]
[null,"Umlaufvermögen","Bargeld",600,600]
[null,"Umlaufvermögen","Investitionen"]
[null,"Umlaufvermögen","Lagerbestände"]
[null,"Umlaufvermögen","Forderungen"]
[null,"Umlaufvermögen","Rechnungsabgrenzungsposten"]
[null,"Anlagevermögen","Sachanlagen"]
[null,"Anlagevermögen","Mietereinbauten"]
[null,"Anlagevermögen","Beteiligungen und sonstige Finanzanlagen"]
[null,"Anlagevermögen","Abzüglich kumulierter Abschreibungen (negativer Wert)",{"v":-100,"d":"-100 "},{"v":-85,"d":"-85 "}]
[null,"Sonstiges Aktiva","Spenden"]
[null,"GUTHABEN GESAMT",null,{"$f":"SUBTOTAL(109,Vermögenswerte[VORJAHR])","v":500},{"$f":"SUBTOTAL(109,Vermögenswerte[AKTUELLES JAHR])","v":515}]

{"sheet":"Verbindlichkeiten","index":2,"n_rows":13,"n_cols":5,"rows_kept":13}
[]
[null,"VERBINDLICHKEITEN"]
[{"$nulls":3},{"$f":"GS_JAHR","v":"GJ-2023"},{"$f":"GS_JAHR_2","v":"GJ-2024"}]
[null,"ART DER VERBINDLICHKEIT","BESCHREIBUNG","VORJAHR","AKTUELLES JAHR"]
[null,"Kurzfristige Verbindlichkeiten","Schuldposten",null,350]
[null,"Kurzfristige Verbindlichkeiten","Lohnverbindlichkeiten"]
[null,"Kurzfristige Verbindlichkeiten","Rückstellungen für Verpflichtungen",500]
[null,"Kurzfristige Verbindlichkeiten","Verbindlichkeiten aus Ertragssteuern"]
[null,"Kurzfristige Verbindlichkeiten","Unverdiente Erträge"]
[null,"Langfristige Verbindlichkeiten","Hypothekenschulden"]
[null,"Eigenkapital","Investitionskapital",null,350]
[null,"Eigenkapital","Gewinnvortrag aus früheren Jahren"]
[null,"VERBINDLICHKEITEN GESAMT UND EIGENKAPITAL",null,{"$f":"SUBTOTAL(109,Passiva[VORJAHR])","v":500},{"$f":"SUBTOTAL(109,Passiva[AKTUELLES JAHR])","v":700}]

{"sheet":"Kategorien","index":3,"n_rows":10,"n_cols":2,"rows_kept":10}
[]
[null,"KATEGORIEN"]
[]
[null,"KATEGORIEN"]
[null,"Umlaufvermögen"]
[null,"Anlagevermögen"]
[null,"Sonstiges Aktiva"]
[null,"Kurzfristige Verbindlichkeiten"]
[null,"Langfristige Verbindlichkeiten"]
[null,"Eigenkapital"]